bitfinex/quotes_BTCUSD_20241124
["timestamp","ask_amount","ask_price","bid_price","bid_amount"]
[1732425141140,0.00076551,98082.0,98061.0,0.19641966]
[1732425143965,0.00162431,98082.0,98061.0,0.19641966]
[1732425145050,0.00162431,98082.0,98062.0,0.0454]
[1732425145436,0.00162431,98082.0,98063.0,0.0784]
[1732425145638,0.00162431,98082.0,98064.0,0.1954]
[1732425148499,0.00162431,98082.0,98064.0,0.1854]
[1732425149809,0.04231991,98090.0,98064.0,0.1854]
[1732425150030,0.04231991,98090.0,98065.0,0.0454]
[1732425153437,0.04231991,98090.0,98068.0,0.0454]
[1732425153674,0.04231991,98090.0,98057.0,0.01163389]
[1732425153871,0.04231991,98090.0,98058.0,0.00101966]
[1732425154202,0.04231991,98090.0,98054.0,0.00101966]
[1732425155255,0.04231991,98090.0,98059.0,0.0017174]
[1732425155459,0.04317861,98090.0,98060.0,0.00101966]
[1732425156802,0.00101966,98089.0,98054.0,0.02266957]
[1732425157021,0.0485,98088.0,98055.0,0.00101966]
[1732425157261,0.0485,98088.0,98053.0,0.20186902]
[1732425157262,0.00101966,98087.0,98054.0,0.00101966]
[1732425157915,0.0831,98086.0,98054.0,0.00101966]
[1732425158138,0.00101966,98085.0,98054.0,0.00101966]
[1732425158784,0.0831,98086.0,98054.0,0.15101966]
[1732425159013,0.00101966,98085.0,98054.0,0.15101966]
[1732425159876,0.00101966,98085.0,98055.0,0.1294]
[1732425160085,0.00101966,98085.0,98058.0,0.15]
[1732425160238,0.00101966,98085.0,98061.0,0.0478]
[1732425160442,0.00101966,98085.0,98063.0,0.0478]
[1732425160645,0.00101966,98085.0,98064.0,0.00101961]
[1732425161566,0.0493,98084.0,98064.0,0.00101961]
[1732425161727,0.00101966,98083.0,98064.0,0.00101961]
[1732425164422,0.0493,98081.0,98059.0,0.1294]
[1732425164553,0.0008587,98090.0,98054.0,0.15]
[1732425164554,0.0493,98078.0,98054.0,0.15]
[1732425164755,0.0493,98075.0,98054.0,0.15]
[1732425164995,0.00101966,98074.0,98054.0,0.15]
[1732425165597,0.00101966,98074.0,98054.0,0.19128055]
[1732425167983,0.00101966,98074.0,98054.0,0.19299755]
[1732425170963,0.0493,98075.0,98054.0,0.19299755]
[1732425171435,0.0493,98075.0,98055.0,0.00101966]
[1732425172711,0.04925467,98075.0,98055.0,0.00101966]
[1732425180101,0.05011357,98075.0,98055.0,0.00101966]
[1732425184172,0.05011357,98075.0,98056.0,0.0751]
[1732425184370,0.05011357,98075.0,98058.0,0.0499]
[1732425184574,0.05011357,98075.0,98059.0,0.00101966]
[1732425186474,0.0008589,98075.0,98059.0,0.00101966]
[1732425191540,0.0831,98076.0,98059.0,0.00101966]
[1732425192911,0.045,98080.0,98059.0,0.00101966]
[1732425193117,0.045,98080.0,98060.0,0.04671966]
[1732425198054,0.0475587,98090.0,98061.0,0.0774]
[1732425198294,0.0475587,98090.0,98065.0,0.1952]
[1732425198507,0.0475587,98090.0,98066.0,0.04621958]
[1732425202416,0.0475587,98090.0,98066.0,0.2380455]
[1732425203344,0.0475587,98090.0,98066.0,0.0880455]
[1732425204643,0.0475587,98090.0,98067.0,0.0452]
[1732425204847,0.0475587,98090.0,98069.0,0.1952]
[1732425211376,0.0475587,98090.0,98067.0,0.15]
[1732425211597,0.0792,98089.0,98060.0,0.0017174]
[1732425211811,0.0467,98088.0,98060.0,0.0017174]
[1732425212024,0.0467,98086.0,98060.0,0.0017174]
[1732425212253,0.0792,98085.0,98060.0,0.0017174]
[1732425212460,0.0467,98084.0,98060.0,0.0017174]
[1732425212675,0.0467,98084.0,98060.0,0.04334061]
[1732425213552,0.1259,98083.0,98061.0,0.00101962]
[1732425214633,0.0467,98082.0,98061.0,0.00101962]
[1732425214890,0.0467,98081.0,98061.0,0.00101962]
[1732425215335,0.0792,98080.0,98060.0,0.04334061]
[1732425215542,0.0467,98079.0,98060.0,0.04334061]
[1732425217289,0.0467,98079.0,98061.0,0.0017184]
[1732425223538,0.0464,98077.0,98061.0,0.0017184]
[1732425227759,0.0464,98077.0,98061.0,0.00273806]
[1732425228397,0.0464,98077.0,98062.0,0.00101966]
[1732425229068,0.04638295,98077.0,98062.0,0.00101966]
[1732425238839,0.1266,98075.0,98062.0,0.00101966]
[1732425239046,0.1266,98075.0,98061.0,0.0017184]
[1732425239047,0.10201427,98074.0,98061.0,0.0017184]
[1732425239246,0.1266,98077.0,98061.0,0.0017184]
[1732425239891,0.1266,98076.0,98061.0,0.0017184]
[1732425240114,0.1266,98074.0,98005.0,0.002]
[1732425240320,0.0809,98069.0,98026.0,0.15]
[1732425240513,0.0457,98066.0,98026.0,0.15]
[1732425240762,0.1266,98073.0,98026.0,0.15]
[1732425240969,0.0457,98069.0,98026.0,0.15]
[1732425241185,0.10201427,98074.0,98026.0,0.15]
[1732425241186,0.0809,98065.0,98026.0,0.15]
[1732425241392,0.1266,98058.0,98026.0,0.15]
[1732425241628,0.0809,98056.0,98027.0,0.00101995]
[1732425243992,0.0809,98056.0,98026.0,0.19198947]
[1732425244577,0.0809,98056.0,98028.0,0.15]
[1732425245157,0.0809,98054.0,98028.0,0.15]
[1732425245386,0.0809,98052.0,98028.0,0.15]
[1732425245665,0.0809,98050.0,98026.0,0.19198947]
[1732425246055,0.0809,98048.0,98026.0,0.15]
[1732425246909,0.0809,98046.0,98026.0,0.15]
[1732425254121,0.0809,98046.0,98026.0,0.1517184]
[1732425256663,0.0809,98046.0,98027.0,0.00102005]
[1732425257105,0.0467,98053.0,98027.0,0.00102005]
[1732425260137,0.0822,98052.0,98027.0,0.00102005]
[1732425265017,0.0822,98052.0,98028.0,0.049]
[1732425265226,0.0822,98052.0,98029.0,0.00101995]
[1732425265455,0.0822,98052.0,98030.0,0.00101995]
[1732425265696,0.0822,98052.0,98029.0,0.00101995]
[1732425266018,0.0830594,98052.0,98029.0,0.00101995]
[1732425272080,0.0008594,98052.0,98029.0,0.00101995]
[1732425272777,0.0008594,98052.0,98030.0,0.0769]
[1732425272985,0.0008594,98052.0,98031.0,0.00101995]
[1732425275455,0.0008594,98052.0,98032.0,0.045]
[1732425275664,0.0008594,98052.0,98033.0,0.00101995]
[1732425276297,0.0762,98059.0,98033.0,0.00101995]
[1732425276546,0.00100565,98077.0,98033.0,0.00101995]
[1732425276547,0.00100565,98077.0,98055.0,0.15]
[1732425276771,0.00100565,98077.0,98044.0,0.045]
[1732425276772,0.00100565,98077.0,98045.0,0.00101979]
[1732425277000,0.0008592,98077.0,98046.0,0.00101981]
[1732425277225,0.0008592,98077.0,98047.0,0.15]
[1732425277447,0.0008593,98052.0,98047.0,0.43527]
[1732425277676,0.0008593,98052.0,98047.0,0.15]
[1732425278542,0.0008593,98052.0,98030.0,0.15101995]
[1732425279417,0.0008593,98052.0,98032.0,0.15]
[1732425279635,0.0008593,98052.0,98033.0,0.00101987]
[1732425279845,0.0008593,98052.0,98034.0,0.00101987]
[1732425280070,0.0008593,98052.0,98033.0,0.00101987]
[1732425280708,0.0008593,98052.0,98031.0,0.00101987]
[1732425280922,0.0008593,98052.0,98032.0,0.15]
[1732425281220,0.0008593,98052.0,98033.0,0.00101987]
[1732425282224,0.0008593,98052.0,98034.0,0.00101988]
[1732425282435,0.0008593,98052.0,98031.0,0.00101988]
[1732425282661,0.0008593,98052.0,98032.0,0.15]
[1732425282862,0.0008593,98052.0,98030.0,0.1908337]
[1732425283110,0.0008593,98052.0,98031.0,0.48459788]
[1732425283254,0.0008593,98052.0,98031.0,0.39225888]
[1732425283471,0.0008593,98052.0,98032.0,0.381558]
[1732425283676,0.1276,98049.0,98030.0,0.0408337]
[1732425283926,0.0008593,98052.0,98029.0,0.0017186]
[1732425283927,0.1276,98046.0,98029.0,0.0017186]
[1732425284159,0.08041988,98045.0,98029.0,0.0017186]
[1732425285116,0.08041988,98045.0,98029.0,0.04403994]
[1732425285344,0.08041988,98045.0,98029.0,0.0017186]
[1732425287377,0.08041988,98045.0,98029.0,0.04314784]
[1732425287608,0.0794,98045.0,98029.0,0.0017186]
[1732425287807,0.00067988,98044.0,98029.0,0.0017186]
[1732425288675,0.0794,98043.0,98029.0,0.0017186]
[1732425288916,0.00067988,98042.0,98029.0,0.0017186]
[1732425289761,0.00067988,98042.0,98029.0,0.04383581]
[1732425290191,0.0482,98041.0,98029.0,0.04383581]
[1732425290440,0.00067988,98040.0,98029.0,0.04383581]
[1732425292139,0.00067988,98040.0,98011.0,0.0888765]
[1732425293222,0.00067988,98040.0,98011.0,0.12972157]
[1732425294402,0.00067988,98040.0,98012.0,0.15]
[1732425294992,0.0794,98039.0,98012.0,0.15]
[1732425295211,0.00067988,98038.0,98012.0,0.15]
[1732425299097,0.0461,98037.0,98012.0,0.15]
[1732425299307,0.00067988,98036.0,98012.0,0.15]
[1732425299526,0.00067988,98036.0,98014.0,0.15]
[1732425299737,0.00067988,98036.0,98016.0,0.15]
[1732425299984,0.00067988,98036.0,98017.0,0.30607]
[1732425300195,0.00067988,98036.0,98018.0,0.15]
[1732425300398,0.00067988,98036.0,98020.0,0.15]
[1732425300605,0.00067988,98036.0,98021.0,0.30606]
[1732425301242,0.00067988,98036.0,98022.0,0.15]
[1732425307011,0.1221,98035.0,98022.0,0.15]
[1732425307229,0.00067988,98034.0,98022.0,0.15]
[1732425307855,0.0461,98033.0,98022.0,0.15]
[1732425308059,0.00067988,98032.0,98022.0,0.15]
[1732425308261,0.076,98031.0,98022.0,0.15]
[1732425308410,0.00067988,98030.0,98022.0,0.15]
[1732425315407,0.076,98031.0,98022.0,0.15]
[1732425318875,0.076,98031.0,98022.0,0.145]
[1732425334930,0.0463,98030.0,98022.0,0.145]
[1732425336452,0.0463,98030.0,98022.0,0.1467192]
[1732425337098,0.0455,98027.0,98022.0,0.1467192]
[1732425337299,0.0803,98026.0,98022.0,0.1467192]
[1732425337511,0.0455,98025.0,98022.0,0.1467192]
[1732425339513,0.00067988,98024.0,98022.0,0.1467192]
[1732425339728,0.0451,98023.0,98022.0,0.1467192]
[1732425340159,0.1241,98023.0,98022.0,0.1467192]
[1732425350014,0.1249596,98023.0,98022.0,0.1467192]
[1732425371320,0.1249016,98023.0,98022.0,0.15]
[1732425374814,0.1249016,98023.0,98022.0,0.1517186]
[1732425375696,0.0459016,98023.0,98022.0,0.1517186]
[1732425377652,0.1216016,98023.0,98022.0,0.1517186]
[1732425381097,0.0459016,98023.0,98022.0,0.1517186]
[1732425383875,0.0459016,98023.0,98008.0,0.08487705]
[1732425384085,0.00067988,98022.0,98008.0,0.08487705]
[1732425384528,0.00067988,98022.0,98009.0,0.30608]
[1732425384954,0.0008596,98023.0,98009.0,0.30608]
[1732425386144,0.0008596,98023.0,98010.0,0.15]
[1732425386369,0.0008596,98023.0,98011.0,0.30609]
[1732425386576,0.0008596,98023.0,98022.0,0.0017184]
[1732425387457,0.0008596,98031.0,98022.0,0.0017184]
[1732425388691,0.0008596,98031.0,98022.0,0.04382469]
[1732425388917,0.0008597,98037.0,98022.0,0.04382469]
[1732425388918,0.0008597,98037.0,98023.0,0.0773]
[1732425389139,0.00067988,98066.0,98023.0,0.0773]
[1732425389140,0.00067988,98066.0,98027.0,0.0478]
[1732425389361,0.00067988,98071.0,98028.0,0.45705996]
[1732425389602,0.00067988,98070.0,98032.0,0.15]
[1732425389822,0.00082633,98072.0,98034.0,0.15]
[1732425390040,0.00067988,98071.0,98035.0,0.30601]
[1732425390257,0.00067988,98071.0,98036.0,0.15]
[1732425390484,0.00067988,98071.0,98038.0,0.15]
[1732425390802,0.00067988,98075.0,98038.0,0.15]
[1732425391020,0.00067988,98074.0,98038.0,0.15]
[1732425392125,0.1216,98056.0,98038.0,0.15]
[1732425392393,0.00067988,98055.0,98038.0,0.15]
[1732425392612,0.0008013,98052.0,98038.0,0.15]
[1732425393571,0.0008013,98052.0,98039.0,0.00101994]
[1732425393802,0.0008013,98052.0,98041.0,0.15]
[1732425399573,0.0008013,98052.0,98040.0,0.1251]
[1732425399574,0.1281,98051.0,98038.0,0.1920928]
[1732425399786,0.00067988,98050.0,98038.0,0.1920928]
[1732425405511,0.0788,98067.0,98040.0,0.15]
[1732425405688,0.00067988,98066.0,98041.0,0.04831986]
[1732425407832,0.00067988,98066.0,98043.0,0.15]
[1732425408058,0.00067988,98066.0,98045.0,0.15]
[1732425408279,0.00067988,98066.0,98046.0,0.00101978]
[1732425408508,0.00067988,98066.0,98047.0,0.15]
[1732425410501,0.00067988,98066.0,98049.0,0.2297]
[1732425410709,0.00067988,98069.0,98050.0,0.00101978]
[1732425410920,0.0788,98073.0,98050.0,0.00101978]
[1732425410921,0.00067988,98068.0,98050.0,0.00101978]
[1732425411140,0.0788,98073.0,98050.0,0.00101978]
[1732425411141,0.00067988,98072.0,98050.0,0.00101978]
[1732425411340,0.000859,98066.0,98050.0,0.00101978]
[1732425413360,0.000859,98066.0,98047.0,0.15]
[1732425413361,0.12877988,98065.0,98047.0,0.15]
[1732425415439,0.000859,98066.0,98048.0,0.15101987]
[1732425415650,0.000859,98066.0,98048.0,0.15]
[1732425416940,0.000859,98066.0,98049.0,0.00101971]
[1732425419890,0.000859,98066.0,98051.0,0.1968]
[1732425420103,0.000859,98066.0,98053.0,0.15]
[1732425420320,0.000859,98066.0,98054.0,0.40408966]
[1732425420744,0.00153908,98077.0,98055.0,0.15]
[1732425420966,0.0008592,98077.0,98056.0,0.00101966]
[1732425422687,0.000859,98066.0,98056.0,0.00101966]
[1732425423309,0.0008592,98077.0,98056.0,0.04231133]
[1732425423539,0.0008592,98077.0,98057.0,0.2326]
[1732425423755,0.0008592,98077.0,98058.0,0.00101961]
[1732425423974,0.0008592,98077.0,98059.0,0.00101961]
[1732425424254,0.0008592,98077.0,98057.0,0.0826]
[1732425424255,0.0008592,98077.0,98058.0,0.00101961]
[1732425425990,0.0817,98075.0,98055.0,0.19075487]
[1732425426199,0.00067988,98074.0,98055.0,0.19075487]
[1732425435688,0.0817,98075.0,98057.0,0.15]
[1732425435918,0.0817,98075.0,98058.0,0.00101963]
[1732425436132,0.0817,98075.0,98059.0,0.00101963]
[1732425436356,0.0817,98075.0,98058.0,0.00101963]
[1732425436576,0.0008592,98077.0,98058.0,0.00101963]
[1732425436810,0.07878391,98082.0,98060.0,0.15]
[1732425437097,0.07878391,98082.0,98061.0,0.00101962]
[1732425437320,0.07878391,98082.0,98062.0,0.00101962]
[1732425437539,0.07878391,98082.0,98060.0,0.15]
[1732425437540,0.07878391,98082.0,98061.0,0.00101962]
[1732425438829,0.07785015,98082.0,98061.0,0.00101962]
[1732425439059,0.00067988,98081.0,98061.0,0.00101962]
[1732425441411,0.00067988,98081.0,98060.0,0.15]
[1732425442528,0.07785015,98082.0,98061.0,0.00101961]
[1732425442759,0.0829,98088.0,98061.0,0.00101961]
[1732425442977,0.00067988,98087.0,98061.0,0.00101961]
[1732425443652,0.00067988,98087.0,98062.0,0.40305]
[1732425443955,0.00067988,98087.0,98063.0,0.1510196]
[1732425444794,0.0829,98088.0,98063.0,0.1510196]
[1732425445026,0.0829,98088.0,98064.0,0.0498]
[1732425445205,0.0829,98088.0,98065.0,0.00101956]
[1732425445455,0.00067988,98087.0,98066.0,0.00101956]
[1732425445677,0.0829,98088.0,98066.0,0.0787]
[1732425445890,0.0829,98088.0,98067.0,0.00101956]
[1732425446097,0.00067988,98087.0,98068.0,0.15]
[1732425446321,0.00067988,98089.0,98069.0,0.00101956]
[1732425446551,0.00067988,98088.0,98069.0,0.009932]
[1732425446763,0.0795,98086.0,98068.0,0.15]
[1732425446968,0.0795,98084.0,98068.0,0.15]
[1732425447199,0.0795,98082.0,98068.0,0.15]
[1732425447426,0.10201427,98089.0,98068.0,0.15]
[1732425447427,0.04787988,98081.0,98068.0,0.15]
[1732425448102,0.04787988,98081.0,98068.0,0.19071907]
[1732425450320,0.0795,98080.0,98068.0,0.19071907]
[1732425450572,0.00067988,98079.0,98068.0,0.19071907]
[1732425454081,0.0795,98080.0,98068.0,0.19071907]
[1732425454082,0.0693316,98080.0,98068.0,0.19071907]
[1732425460738,0.0693316,98080.0,98068.0,0.19243647]
[1732425461413,0.0693316,98080.0,98067.0,0.40303]
[1732425461414,0.0693316,98080.0,98067.0,0.29193112]
[1732425463703,0.0693316,98080.0,98068.0,0.15]
[1732425470286,0.10201427,98079.0,98067.0,0.29193112]
[1732425470491,0.1313,98074.0,98067.0,0.29193112]
[1732425470732,0.1313,98072.0,98067.0,0.29193112]
[1732425470952,0.0822,98070.0,98067.0,0.29193112]
[1732425471171,0.1313,98068.0,98067.0,0.29193112]
[1732425471427,0.23331427,98068.0,98067.0,0.29193112]
[1732425473398,0.23331427,98068.0,98067.0,0.29364892]
[1732425477709,0.1313,98068.0,98067.0,0.29364892]
[1732425483797,0.0822,98068.0,98067.0,0.29364892]
[1732425485832,0.0830589,98068.0,98067.0,0.29364892]
[1732425487376,0.0008589,98068.0,98067.0,0.29364892]
[1732425492483,0.0008589,98068.0,98067.0,0.44364892]
[1732425492930,0.0008589,98068.0,98067.0,0.49094892]
[1732425498881,0.0008589,98068.0,98067.0,0.0473]
[1732425499512,0.0008589,98068.0,98067.0,0.08874503]
[1732425500908,0.0008589,98080.0,98070.0,0.12533782]
[1732425501138,0.0008589,98080.0,98071.0,0.15]
[1732425501802,0.0008589,98080.0,98072.0,0.0824]
[1732425502459,0.0008589,98080.0,98073.0,0.1966]
[1732425504966,0.0008587,98090.0,98073.0,0.1966]
[1732425505870,0.0008587,98090.0,98078.0,0.06266891]
[1732425508650,0.0502587,98088.0,98078.0,0.06266891]
[1732425510517,0.0502587,98088.0,98079.0,0.15]
[1732425519017,0.0008587,98088.0,98079.0,0.15]
[1732425519236,0.0008587,98088.0,98080.0,0.0483]
[1732425530932,0.0008587,98088.0,98078.0,0.22611467]
[1732425533140,0.0008587,98088.0,98079.0,0.15]
[1732425539370,0.0008587,98088.0,98078.0,0.12533782]
[1732425542849,0.0008587,98088.0,98078.0,0.04350294]
[1732425543075,0.0008587,98088.0,98078.0,0.16884076]
[1732425545606,0.0008587,98088.0,98079.0,0.15]
[1732425547413,0.0008587,98088.0,98078.0,0.04350294]
[1732425547625,0.0008587,98088.0,98079.0,0.15]
[1732425549771,0.0008587,98088.0,98078.0,0.04350294]
[1732425554271,0.1265,98087.0,98078.0,0.04350294]
[1732425558256,0.0008587,98088.0,98078.0,0.04350294]
[1732425558474,0.0008587,98088.0,98080.0,0.15]
[1732425559691,0.0008587,98088.0,98079.0,0.0473]
[1732425561234,0.0008587,98088.0,98078.0,0.04350294]
[1732425567062,0.1289,98087.0,98078.0,0.04350294]
[1732425576183,0.1297591,98087.0,98078.0,0.04350294]
[1732425577783,0.0008591,98087.0,98078.0,0.04350294]
[1732425581803,0.00101958,98086.0,98067.0,0.00989279]
[1732425581988,0.00101958,98086.0,98068.0,0.00101957]
[1732425582158,0.00101958,98086.0,98067.0,0.00101957]
[1732425583177,0.00101958,98086.0,98067.0,0.04177217]
[1732425583385,0.00101958,98086.0,98067.0,0.00101957]
[1732425585739,0.0468,98085.0,98067.0,0.00101957]
[1732425587227,0.0468,98085.0,98067.0,0.1920721]
[1732425587638,0.0468,98085.0,98067.0,0.1937903]
[1732425592132,0.0764,98084.0,98067.0,0.1937903]
[1732425596739,0.0764,98084.0,98068.0,0.03177713]
[1732425596888,0.0764,98084.0,98069.0,0.00101957]
[1732425597453,0.0764,98084.0,98068.0,0.00101957]
[1732425598109,0.07322519,98084.0,98068.0,0.00101957]
[1732425598728,0.0452,98083.0,98068.0,0.00101957]
[1732425606877,0.0452,98083.0,98069.0,0.03445914]
[1732425607085,0.0452,98083.0,98070.0,0.00101953]
[1732425607261,0.03544472,98083.0,98071.0,0.00101953]
[1732425607671,0.07322519,98084.0,98068.0,0.00101952]
[1732425607920,0.07322519,98084.0,98069.0,0.00101952]
[1732425608080,0.07322519,98084.0,98068.0,0.00101952]
[1732425609598,0.07322519,98084.0,98067.0,0.04277073]
[1732425609599,0.00101958,98083.0,98067.0,0.04277073]
[1732425609841,0.08211958,98083.0,98067.0,0.04277073]
[1732425610283,0.0452,98080.0,98067.0,0.04277073]
[1732425610521,0.1263,98075.0,98074.0,0.15]
[1732425611580,0.00101958,98083.0,98069.0,0.15]
[1732425611581,0.0452,98072.0,98069.0,0.15]
[1732425611793,0.0452,98069.0,98068.0,0.0017182]
[1732425612003,0.04621958,98069.0,98068.0,0.0017182]
[1732425612639,0.12731958,98069.0,98068.0,0.0017182]
[1732425612847,0.1263,98069.0,98068.0,0.0017182]
[1732425623829,0.22831427,98069.0,98068.0,0.0017182]
[1732425625421,0.0485,98066.0,98017.0,0.15]
[1732425625637,0.1283,98060.0,98018.0,0.15]
[1732425625799,0.10201427,98069.0,98016.0,0.04121101]
[1732425625800,0.1283,98057.0,98020.0,0.15]
[1732425626011,0.10201427,98069.0,98020.0,0.15]
[1732425626012,0.00101958,98056.0,98020.0,0.15]
[1732425626223,0.1283,98065.0,98020.0,0.15]
[1732425626421,0.1283,98058.0,98020.0,0.15]
[1732425626799,0.0485,98051.0,98020.0,0.15]
[1732425627015,0.0485,98051.0,98016.0,0.04121101]
[1732425627196,0.0485,98051.0,98018.0,0.15]
[1732425627656,0.0485,98051.0,98014.0,0.161]
[1732425627657,0.0485,98051.0,98020.0,0.15]
[1732425628490,0.0485,98051.0,98021.0,0.1078]
[1732425628695,0.0485,98051.0,98022.0,0.15]
[1732425631743,0.0485,98051.0,98023.0,0.00101987]
[1732425632372,0.0485,98051.0,98025.0,0.2304]
[1732425632601,0.0485,98051.0,98014.0,0.20169071]
[1732425632602,0.0485,98063.0,98031.0,0.2304]
[1732425632836,0.0485,98063.0,98032.0,1.239992]
[1732425633058,0.0485,98063.0,98032.0,0.2578]
[1732425634871,0.0485,98063.0,98032.0,0.29893688]
[1732425635870,0.0017194,98051.0,98032.0,0.29893688]
[1732425637258,0.0485,98063.0,98032.0,0.29893688]
[1732425643907,0.0466,98061.0,98032.0,0.29893688]
[1732425647198,0.046,98059.0,98032.0,0.29893688]
[1732425648474,0.046,98059.0,98032.0,0.27153688]
[1732425649316,0.0455,98057.0,98032.0,0.04113688]
[1732425649532,0.0455,98057.0,98027.0,0.1774]
[1732425649743,0.0455,98057.0,98029.0,0.15]
[1732425649947,0.0455,98057.0,98031.0,0.15]
[1732425650144,0.0455,98055.0,98033.0,0.15]
[1732425650352,0.0455,98055.0,98031.0,0.15]
[1732425650595,0.0455,98055.0,98033.0,0.15]
[1732425650779,0.0455,98055.0,98031.0,0.15]
[1732425650986,0.0455,98055.0,98033.0,0.15]
[1732425652114,0.0455,98055.0,98027.0,0.21925038]
[1732425652323,0.0455,98055.0,98029.0,0.15]
[1732425652552,0.0455,98055.0,98031.0,0.15]
[1732425652784,0.0455,98055.0,98033.0,0.15]
[1732425652973,0.0455,98055.0,98031.0,0.15]
[1732425653181,0.0455,98055.0,98032.0,0.336172]
[1732425653388,0.0017194,98063.0,98026.0,0.05374197]
[1732425653389,0.0817,98052.0,98027.0,0.524297]
[1732425653561,0.0455,98051.0,98027.0,0.524297]
[1732425654145,0.0455,98051.0,98027.0,0.22496246]
[1732425654403,0.0455,98051.0,98026.0,0.05374197]
[1732425654605,0.0455,98051.0,98027.0,0.263401]
[1732425655077,0.0817,98050.0,98028.0,0.15]
[1732425655284,0.0455,98049.0,98028.0,0.15]
[1732425655493,0.0455,98049.0,98030.0,0.15]
[1732425655723,0.0017194,98063.0,98030.0,0.15]
[1732425656162,0.0817,98057.0,98030.0,0.15]
[1732425656371,0.0017194,98063.0,98030.0,0.15]
[1732425656372,0.0455,98051.0,98030.0,0.15]
[1732425656568,0.0455,98049.0,98026.0,0.04143745]
[1732425656775,0.0017194,98063.0,98026.0,0.04143745]
[1732425656976,0.0017194,98063.0,98015.0,0.2025]
[1732425656977,0.0455,98061.0,98015.0,0.2025]
[1732425657180,0.0455,98059.0,98018.0,0.15]
[1732425657372,0.1272,98051.0,98020.0,0.15]
[1732425657597,0.0817,98049.0,98020.0,0.15]
[1732425657830,0.0455,98048.0,98022.0,0.15]
[1732425658018,0.0489,98046.0,98022.0,0.15]
[1732425658218,0.0803,98043.0,98023.0,0.443379]
[1732425658433,0.0803,98041.0,98024.0,0.15]
[1732425658671,0.0489,98040.0,98024.0,0.15]
[1732425659359,0.0489,98040.0,98016.0,0.0008597]
[1732425659642,0.0489,98036.0,98023.0,0.0008591]
[1732425659862,0.0489,98034.0,98023.0,0.0008591]
[1732425661641,0.0489,98034.0,98024.0,0.00101997]
[1732425662318,0.0489,98034.0,98025.0,0.03217897]
[1732425662531,0.0489,98034.0,98026.0,0.00101997]
[1732425662950,0.0489,98034.0,98024.0,0.00101997]
[1732425663203,0.01316633,98034.0,98024.0,0.00101997]
[1732425665570,0.01133933,98034.0,98024.0,0.00101997]
[1732425666072,0.0803,98035.0,98024.0,0.00101997]
[1732425666305,0.0803,98035.0,98023.0,0.0008591]
[1732425669183,0.0474,98034.0,98023.0,0.0008591]
[1732425672447,0.0482592,98034.0,98023.0,0.0008591]
[1732425674609,0.01553584,98034.0,98024.0,0.00101997]
[1732425674817,0.07042819,98035.0,98024.0,0.02401997]
[1732425675052,0.06490052,98035.0,98024.0,0.02401997]
[1732425679787,0.0488,98034.0,98016.0,0.173]
[1732425679960,0.0488,98034.0,98017.0,0.296897]
[1732425680168,0.01724001,98034.0,98017.0,0.296897]
[1732425681825,0.01724001,98034.0,98018.0,0.173]
[1732425682048,0.01724001,98034.0,98016.0,0.173]
[1732425682263,0.01724001,98034.0,98018.0,0.173]
[1732425683738,0.01724001,98034.0,98016.0,0.173]
[1732425683948,0.01724001,98034.0,98016.0,0.901296]
[1732425684170,0.01724001,98034.0,98018.0,0.173]
[1732425684384,0.01724001,98034.0,98019.0,0.30604]
[1732425684631,0.01724001,98034.0,98021.0,0.023]
[1732425686008,0.01724001,98034.0,98022.0,0.00101996]
[1732425689305,0.00987188,98035.0,98022.0,0.00101996]
[1732425690560,0.00987188,98035.0,98024.0,0.15]
[1732425690716,0.00987188,98035.0,98026.0,0.15]
[1732425690958,0.0017194,98063.0,98026.0,0.15]
[1732425690959,0.0017194,98063.0,98028.0,0.0466]
[1732425691124,0.0017194,98063.0,98030.0,0.15]
[1732425691493,0.0017194,98063.0,98031.0,0.51964476]
[1732425691649,0.0017194,98063.0,98032.0,0.847859]
[1732425691811,0.0017194,98063.0,98033.0,0.15101976]
[1732425692009,0.0017194,98063.0,98033.0,0.00101976]
[1732425692213,0.0017194,98063.0,98030.0,0.15]
[1732425692214,0.0017194,98063.0,98031.0,0.00101976]
[1732425692448,0.0488,98062.0,98032.0,0.15]
[1732425692656,0.0488,98062.0,98033.0,0.00101976]
[1732425694069,0.0754,98061.0,98033.0,0.00101976]
[1732425694284,0.0488,98060.0,98033.0,0.00101976]
[1732425694494,0.0754,98059.0,98033.0,0.00101976]
[1732425698783,0.0754,98059.0,98034.0,0.122]
[1732425699017,0.0451,98058.0,98035.0,0.15]
[1732425700180,0.0451,98058.0,98034.0,0.0464]
[1732425701979,0.0796,98057.0,98034.0,0.0464]
[1732425703312,0.0796,98057.0,98035.0,0.00101977]
[1732425704799,0.0451,98058.0,98035.0,0.00101977]
[1732425704800,0.00590266,98058.0,98036.0,0.191856]
[1732425704999,0.00101958,98082.0,98038.0,0.045]
[1732425705156,0.0008591,98083.0,98040.0,0.15]
[1732425705349,0.0008591,98083.0,98042.0,0.15]
[1732425705583,0.0008591,98083.0,98044.0,0.15]
[1732425705772,0.0008591,98083.0,98045.0,0.6282277]
[1732425705989,0.0008591,98083.0,98046.0,0.518183]
[1732425706191,0.0008591,98083.0,98048.0,0.15]
[1732425706415,0.0008591,98083.0,98049.0,0.0010197]
[1732425707047,0.0008591,98083.0,98049.0,0.0460197]
[1732425707660,0.0008591,98083.0,98049.0,0.045]
[1732425707872,0.0494,98081.0,98049.0,0.045]
[1732425708087,0.0494,98079.0,98050.0,0.00101963]
[1732425708332,0.0494,98077.0,98050.0,0.00101963]
[1732425708560,0.1248,98077.0,98052.0,0.15]
[1732425708769,0.1248,98077.0,98053.0,0.00101959]
[1732425709017,0.1248,98077.0,98052.0,0.15]
[1732425709018,0.1248,98077.0,98054.0,0.00101959]
[1732425709753,0.1248,98077.0,98050.0,0.00101959]
[1732425709962,0.1248,98077.0,98051.0,0.15]
[1732425710159,0.1248,98077.0,98053.0,0.15]
[1732425710404,0.1248,98077.0,98053.0,0.14919659]
[1732425711612,0.1248,98077.0,98049.0,0.08810676]
[1732425711805,0.1248,98077.0,98050.0,0.568615]
[1732425712014,0.1248,98077.0,98050.0,0.551495]
[1732425712631,0.1248,98077.0,98051.0,0.15]